bitfinex/quotes_ETHUSD_20251206
["timestamp","ask_amount","ask_price","bid_price","bid_amount"]
[1765032346127,0.2346,3059.8,3059.4,3.26861476]
[1765032346328,0.2346,3059.5,3059.4,3.26861476]
[1765032346596,0.2346,3059.5,3059.1,3.26890362]
[1765032346770,0.11,3059.9,3059.4,0.4831]
[1765032347530,0.3446,3059.9,3059.2,0.4859]
[1765032348364,0.3446,3059.9,3059.1,7.06402928]
[1765032348535,0.49150515,3059.8,3059.1,7.06402928]
[1765032348952,0.49150515,3059.8,3059.1,6.73713892]
[1765032349160,0.49150515,3059.7,3059.1,6.73713892]
[1765032349843,0.2346,3059.2,3058.6,3.704446]
[1765032350046,0.2346,3059.2,3058.1,0.181]
[1765032350047,0.2346,3059.6,3058.5,0.4859]
[1765032350245,0.11,3059.9,3059.2,6.5376569]
[1765032350767,0.11,3059.9,3058.8,3.26918937]
[1765032350768,0.11,3059.9,3058.9,1.21149411]
[1765032351347,0.11,3059.9,3059.0,0.4859]
[1765032351742,0.11,3059.9,3059.1,0.1993]
[1765032352257,0.11,3059.9,3059.1,0.6852]
[1765032353144,0.49150515,3060.4,3059.8,0.4831]
[1765032353348,0.49150515,3060.2,3059.8,0.4831]
[1765032355153,0.49150515,3060.2,3059.8,3.75123232]
[1765032356272,0.49150515,3060.0,3059.7,3.26825387]
[1765032356468,0.3446,3059.9,3059.6,3.26836332]
[1765032356673,0.3446,3059.9,3059.7,3.26827323]
[1765032357081,0.3446,3059.9,3059.4,3.26860436]
[1765032357082,0.57150515,3059.8,3059.4,3.26860436]
[1765032357378,0.49150515,3059.6,3059.5,3.26850792]
[1765032357578,0.57150515,3059.8,3059.5,6.53701584]
[1765032357738,0.49150515,3059.8,3059.7,0.454]
[1765032357941,0.10063224,3060.8,3059.7,0.973]
[1765032358165,0.26743224,3060.7,3059.7,0.519]
[1765032359071,0.26743224,3060.7,3059.8,6.53637492]
[1765032359242,0.49150515,3060.3,3059.8,6.53637492]
[1765032359436,0.49150515,3060.3,3059.8,3.26818746]
[1765032359639,0.49150515,3060.3,3059.5,0.72559411]
[1765032359640,0.3446,3059.9,3059.5,0.72559411]
[1765032359874,0.3446,3059.9,3059.7,3.26828257]
[1765032360048,0.49150515,3059.8,3059.1,0.87287941]
[1765032360252,1.98284718,3060.6,3059.7,3.26829427]
[1765032360438,1.06846971,3060.5,3059.7,4.20289427]
[1765032360946,0.49150515,3060.2,3059.7,4.20289427]
[1765032361153,1.01150515,3060.4,3059.7,7.47118854]
[1765032361358,0.002,3061.2,3060.3,0.651]
[1765032361547,0.002,3061.2,3060.4,1.4546]
[1765032361773,0.002,3061.2,3060.4,1.61976]
[1765032362961,0.002,3061.2,3060.5,0.4806]
[1765032363177,0.002,3061.2,3060.6,6.5346664]
[1765032363378,0.49150515,3061.1,3060.6,3.2673332]
[1765032363570,0.49150515,3061.1,3060.6,6.5346664]
[1765032364649,0.49150515,3061.1,3060.7,0.4806]
[1765032365278,0.49150515,3061.1,3060.6,3.2673332]
[1765032365579,0.2346,3060.7,3060.4,3.26749192]
[1765032365782,0.2331,3060.5,3059.8,0.72559411]
[1765032365948,0.2331,3060.5,3059.9,0.44744566]
[1765032366354,0.2331,3060.5,3059.7,3.78826248]
[1765032366355,0.2331,3060.5,3059.7,0.52]
[1765032366577,0.2331,3060.5,3059.8,3.26811218]
[1765032366899,0.49150515,3060.2,3059.9,3.26808065]
[1765032367285,0.55930515,3060.7,3059.9,3.26808065]
[1765032367286,0.03283224,3061.0,3060.1,0.651]
[1765032367475,0.002,3061.8,3060.1,0.651]
[1765032367476,0.72559411,3061.3,3060.3,0.454]
[1765032367673,0.49150515,3060.9,3060.4,6.53509344]
[1765032368056,0.0678,3060.8,3060.4,3.26754672]
[1765032368579,0.0678,3060.8,3060.1,0.197]
[1765032368580,0.03283224,3060.8,3060.1,0.197]
[1765032368764,0.49150515,3060.7,3060.1,0.197]
[1765032368966,0.49150515,3060.7,3060.3,6.53523895]
[1765032369165,0.27499316,3060.7,3060.3,6.53523895]
[1765032369558,0.0678,3060.9,3060.2,6.53552054]
[1765032369758,0.49150515,3060.8,3060.2,6.53552054]
[1765032370288,0.49150515,3060.6,3060.2,6.53552054]
[1765032370954,0.49150515,3060.6,3060.3,0.4782]
[1765032371567,0.49150515,3060.6,3060.4,3.26754672]
[1765032372487,0.49150515,3060.6,3060.3,3.26761665]
[1765032372686,0.57150515,3060.4,3060.2,3.26768747]
[1765032373386,0.03283224,3060.8,3060.3,3.73155349]
[1765032373552,0.55930515,3060.9,3060.3,6.99920698]
[1765032373759,0.55930515,3060.9,3060.3,3.73155349]
[1765032373958,0.2346,3060.8,3060.3,3.26758046]
[1765032374589,0.55930515,3060.9,3060.3,3.26758046]
[1765032375886,0.55930515,3060.9,3060.2,6.53551049]
[1765032376090,0.49150515,3060.7,3060.2,6.53551049]
[1765032376890,0.2346,3060.3,3060.2,3.26775022]
[1765032377594,0.2346,3060.3,3060.1,3.26784403]
[1765032377799,1.01150515,3060.5,3060.1,3.26784403]
[1765032377994,0.2346,3060.2,3059.6,6.53680218]
[1765032378298,0.2346,3060.2,3059.6,7.68971845]
[1765032378882,1.01150515,3060.7,3060.1,0.4639]
[1765032379067,0.45807903,3060.9,3060.2,0.9421]
[1765032379270,0.49150515,3060.8,3060.2,0.9421]
[1765032380187,0.49150515,3060.8,3060.3,6.53530698]
[1765032380799,0.49150515,3060.8,3060.3,7.01350698]
[1765032380968,0.002,3061.2,3060.4,0.4782]
[1765032381297,0.49150515,3061.1,3060.4,0.4782]
[1765032381500,0.49150515,3061.1,3060.4,1.50631605]
[1765032382003,0.49150515,3061.1,3060.5,0.4782]
[1765032382705,0.49150515,3061.1,3060.6,6.5346664]
[1765032383573,0.49150515,3061.1,3060.7,0.4782]
[1765032384199,0.49150515,3061.1,3060.1,0.1915]
[1765032384200,0.2346,3060.7,3060.1,0.6697]
[1765032384382,0.3024,3060.7,3060.1,0.63727731]
[1765032384576,0.49150515,3060.6,3059.9,0.52]
[1765032384907,0.49150515,3060.4,3060.1,0.72559411]
[1765032385117,0.49150515,3060.4,3060.0,3.26797385]
[1765032385270,0.2346,3060.1,3060.0,3.26797385]
[1765032385602,0.2346,3060.1,3059.6,1.67291627]
[1765032385807,0.2346,3060.1,3059.6,0.52]
[1765032385967,0.2346,3060.1,3059.4,3.26852745]
[1765032386402,0.2346,3060.1,3059.5,0.72559411]
[1765032386587,0.2346,3060.1,3059.6,3.26836655]
[1765032386588,0.49150515,3059.9,3059.6,3.26836655]
[1765032386790,0.49150515,3059.9,3059.4,6.53714221]
[1765032386998,0.60150515,3059.9,3059.4,6.53714221]
[1765032388498,0.49150515,3059.8,3059.4,6.53714221]
[1765032388801,0.49150515,3059.6,3059.3,3.26869189]
[1765032389103,0.49150515,3059.5,3059.2,3.26879379]
[1765032389278,0.49150515,3059.5,3059.1,3.26891914]
[1765032389475,0.49150515,3059.3,3058.9,3.26906882]
[1765032389802,0.49150515,3059.3,3059.1,3.26890604]
[1765032390276,0.49150515,3059.3,3059.2,3.26882845]
[1765032390475,0.49150515,3059.3,3059.1,3.2689353]
[1765032392210,0.49150515,3059.3,3059.0,3.26901254]
[1765032392511,0.49150515,3059.3,3058.8,3.26923929]
[1765032392713,0.49150515,3059.1,3058.5,0.4782]
[1765032392875,0.49150515,3058.9,3058.7,3.26935911]
[1765032393294,0.0568,3058.9,3058.6,3.26938904]
[1765032393493,0.49150515,3058.8,3058.6,3.26938904]
[1765032393929,0.0568,3058.9,3058.6,3.26938904]
[1765032394094,0.49150515,3058.8,3058.6,3.26938904]
[1765032394295,0.2346,3058.7,3058.4,3.26961352]
[1765032394494,0.2346,3058.7,3058.2,6.53979034]
[1765032394725,0.2346,3058.7,3058.3,0.72407903]
[1765032395239,3.76046752,3059.1,3058.3,0.72407903]
[1765032395240,0.405504,3059.5,3058.6,0.4639]
[1765032395437,0.49150515,3059.4,3058.7,0.4639]
[1765032395930,0.49150515,3059.4,3058.8,0.4782]
[1765032396529,0.49150515,3059.4,3058.5,0.52]
[1765032396530,0.49150515,3059.2,3058.6,6.53893938]
[1765032396897,0.49150515,3059.0,3058.6,6.53893938]
[1765032397330,0.49150515,3059.0,3058.6,7.24483332]
[1765032397495,0.49150515,3059.2,3058.7,0.4782]
[1765032398725,0.49150515,3059.2,3058.8,6.53851182]
[1765032399238,0.49150515,3059.2,3058.8,7.03591182]
[1765032402543,0.405504,3059.5,3059.1,0.6827]
[1765032402752,0.925504,3059.5,3059.2,0.4906]
[1765032403112,0.49150515,3059.8,3059.2,0.988]
[1765032403451,0.49150515,3059.7,3059.4,0.4906]
[1765032403616,0.49150515,3059.7,3059.4,3.75918577]
[1765032404213,0.2346,3059.5,3059.3,3.26869486]
[1765032404409,0.72610515,3059.4,3058.9,0.52]
[1765032404636,0.49150515,3059.4,3059.1,3.26891605]
[1765032405437,0.72610515,3059.2,3058.6,0.70589394]
[1765032405743,0.72610515,3059.2,3058.5,1.22299411]
[1765032405744,0.08,3059.0,3058.5,1.22299411]
[1765032406044,0.49150515,3059.2,3058.5,1.22299411]
[1765032406214,0.49150515,3059.2,3058.7,0.72559411]
[1765032406624,0.49150515,3059.2,3058.6,6.53893938]
[1765032406820,0.49150515,3059.0,3058.6,3.26946969]
[1765032407030,0.49150515,3058.8,3058.6,3.26946969]
[1765032407231,0.2346,3058.7,3058.6,3.26946969]
[1765032407544,0.405504,3059.4,3058.8,3.26925591]
[1765032408230,0.405504,3059.4,3058.8,6.53851182]
[1765032408745,0.405504,3059.4,3058.8,3.26925591]
[1765032409243,0.49150515,3059.2,3058.8,3.26925591]
[1765032409546,0.2346,3058.9,3058.8,3.26925591]
[1765032409844,0.2346,3058.9,3058.7,3.2693628]
[1765032410549,0.1362,3058.8,3058.7,3.2693628]
[1765032411973,0.1362,3058.8,3058.5,6.53913152]
[1765032412145,0.0568,3058.9,3058.5,6.53913152]
[1765032412646,0.49150515,3058.8,3058.5,6.53913152]
[1765032413845,0.2346,3058.6,3058.5,3.26955494]
[1765032414013,0.2346,3058.6,3058.4,3.26968349]
[1765032414412,0.49150515,3058.8,3058.4,6.53936698]
[1765032414825,0.49150515,3058.8,3058.4,7.03676698]
[1765032415032,0.49150515,3058.6,3058.4,3.26968349]
[1765032415546,0.49150515,3058.8,3058.4,6.53936698]
[1765032416215,0.49150515,3058.8,3058.2,6.53979464]
[1765032416415,0.49150515,3058.8,3058.2,7.03719464]
[1765032416824,0.519,3058.9,3058.7,0.4906]
[1765032417050,0.519,3058.9,3058.8,0.4906]
[1765032417856,0.49150515,3059.2,3058.8,0.4906]
[1765032418028,1.01050515,3059.2,3058.8,0.988]
[1765032418232,0.49150515,3059.2,3058.9,3.26914904]
[1765032418436,1.01050515,3059.2,3058.9,3.26914904]
[1765032419957,0.49150515,3059.0,3058.9,3.26914904]
[1765032420652,0.72610515,3059.0,3058.9,3.26914904]
[1765032421055,1.23436618,3059.0,3058.4,3.26961447]
[1765032421228,1.23436618,3059.0,3058.3,0.98166414]
[1765032421229,0.57150515,3058.5,3058.3,4.25138405]
[1765032421435,0.2331,3058.4,3058.3,4.25138405]
[1765032421759,0.49150515,3058.5,3058.2,3.26982606]
[1765032422057,0.08,3058.2,3057.9,6.54042987]
[1765032422363,0.49150515,3058.3,3057.8,0.001]
[1765032422550,1.01050515,3058.5,3057.9,0.4921]
[1765032422726,0.519,3058.5,3058.2,0.4909]
[1765032422922,0.519,3058.5,3057.8,0.001]
[1765032423148,0.49150515,3058.2,3057.8,0.001]
[1765032423459,0.405504,3058.5,3057.9,0.4921]
[1765032423667,0.49150515,3058.4,3058.1,0.6895]
[1765032423955,0.72610515,3058.2,3057.8,0.001]
[1765032424163,0.49150515,3058.4,3057.8,0.4931]
[1765032424478,1.01050515,3058.4,3057.9,6.54043624]
[1765032424968,0.49150515,3058.2,3057.9,7.03253624]
[1765032426149,0.49150515,3058.4,3058.1,0.4909]
[1765032426339,1.01050515,3058.4,3058.1,0.4909]
[1765032426534,0.49150515,3058.4,3058.1,0.4909]
[1765032426737,1.01050515,3058.6,3058.3,0.4909]
[1765032426955,0.519,3058.7,3058.5,0.4909]
[1765032427132,0.49150515,3058.6,3058.5,0.4909]
[1765032427524,1.01050515,3058.8,3058.5,0.4909]
[1765032427757,0.49150515,3058.6,3058.5,0.4909]
[1765032428254,0.49150515,3059.0,3058.5,3.76047658]
[1765032428442,0.49150515,3058.8,3058.5,3.26957658]
[1765032428646,0.49150515,3058.8,3058.5,6.53915316]
[1765032429121,0.49150515,3058.8,3058.5,7.03835316]
[1765032429633,0.0568,3058.9,3058.5,7.03835316]
[1765032429953,0.49150515,3058.8,3058.5,3.76877658]
[1765032430158,0.49150515,3058.8,3058.5,7.03835316]
[1765032430665,0.49150515,3058.8,3058.7,0.4723]
[1765032431575,0.49150515,3058.8,3058.7,3.7416628]
[1765032431777,0.49150515,3058.8,3058.7,4.2408628]
[1765032431978,0.49150515,3058.8,3058.7,3.7416628]
[1765032432194,0.49150515,3058.8,3058.7,0.4723]
[1765032432773,0.49150515,3059.0,3058.7,7.5102256]
[1765032433075,0.519,3059.1,3058.7,4.2408628]
[1765032433277,0.49150515,3059.3,3058.8,0.4992]
[1765032433447,1.01050515,3059.3,3058.8,0.4992]
[1765032433846,1.01050515,3059.3,3058.9,3.26914904]
[1765032435149,0.49150515,3059.1,3058.9,3.26914904]
[1765032436000,0.49150515,3059.1,3058.8,3.26921791]
[1765032436161,0.49150515,3059.1,3058.9,3.26912208]
[1765032437851,0.49150515,3059.1,3058.8,6.53851182]
[1765032438254,0.49150515,3059.1,3058.8,3.26925591]
[1765032439786,0.49150515,3059.1,3058.8,6.53851182]
[1765032439973,1.01050515,3059.3,3058.8,6.53851182]
[1765032440292,0.49150515,3059.1,3058.8,6.53851182]
[1765032440491,1.22471658,3059.3,3058.8,3.26925591]
[1765032440987,0.49150515,3059.1,3058.8,3.26925591]
[1765032441388,0.72610515,3058.9,3058.7,3.26933398]
[1765032441959,0.49150515,3058.9,3058.5,6.53915316]
[1765032442195,0.49150515,3058.9,3058.8,0.4723]
[1765032444898,0.49150515,3058.9,3058.8,3.74155591]
[1765032446366,0.72610515,3058.9,3058.5,3.26957141]
[1765032446566,0.78290515,3058.9,3058.7,3.26926079]
[1765032446767,0.49150515,3058.9,3058.8,3.26925591]
[1765032447196,0.49150515,3058.9,3058.8,3.74155591]
[1765032447564,0.49150515,3058.9,3058.8,4.24075591]
[1765032448065,0.49150515,3058.9,3058.8,3.26925591]
[1765032449293,0.73321143,3059.3,3058.8,3.74155591]
[1765032449534,0.49150515,3059.1,3058.8,3.74155591]
[1765032450796,0.49150515,3059.1,3059.0,0.4723]
[1765032451388,0.72610515,3059.1,3058.7,6.5387256]
[1765032451789,0.72610515,3059.1,3058.7,7.0379256]
[1765032453202,0.49150515,3058.9,3058.7,3.7685628]
[1765032453610,0.49150515,3058.9,3058.7,3.2693628]
[1765032455505,0.49150515,3059.1,3058.8,3.74155591]
[1765032455801,0.49150515,3059.1,3058.8,7.51001182]
[1765032456003,1.00950515,3059.1,3058.8,7.51001182]
[1765032456208,0.70571658,3059.3,3058.8,4.24075591]
[1765032456386,0.49150515,3059.1,3058.8,4.24075591]
[1765032456983,0.21421143,3059.3,3059.0,0.4723]
[1765032457178,1.00950515,3059.5,3059.2,0.4723]
[1765032457371,1.75586253,3059.5,3059.2,0.4723]
[1765032457577,1.75586253,3059.5,3059.2,3.74112845]
[1765032457578,0.49150515,3059.3,3059.2,3.74112845]
[1765032459113,0.49150515,3059.3,3059.1,3.26891227]
[1765032459486,0.49150515,3059.3,3059.0,3.26904217]
[1765032459793,1.23786253,3059.5,3059.0,3.26904217]
[1765032459794,0.518,3059.4,3059.0,3.75064217]
[1765032459974,0.49150515,3059.3,3059.0,3.75064217]
[1765032460620,0.49150515,3059.5,3059.2,0.6702]
[1765032460909,0.52433739,3059.5,3059.2,0.6702]
[1765032461111,0.52433739,3059.5,3059.2,0.4835]
[1765032461912,6.48056348,3059.6,3059.3,3.2687216]
[1765032462105,5.96256348,3059.6,3059.5,0.4835]
[1765032462495,5.96256348,3059.6,3059.5,0.9651]
[1765032462807,6.19716348,3059.6,3059.3,3.2687216]
[1765032463004,0.49150515,3059.5,3059.3,3.2687216]
[1765032463817,0.2346,3059.4,3059.1,3.26893072]
[1765032464192,0.2346,3059.4,3059.1,6.53786602]
[1765032465411,0.08,3059.2,3058.7,0.9996]
[1765032465607,0.72460515,3059.1,3058.8,3.26918402]
[1765032465778,0.72460515,3059.1,3058.7,3.26936098]
[1765032465979,0.49150515,3058.9,3058.6,3.26946969]
[1765032466179,0.49150515,3058.9,3058.6,7.02053938]
[1765032466400,0.49150515,3058.9,3058.8,0.4835]
[1765032466605,0.49150515,3059.1,3058.8,0.4835]
[1765032466811,0.72610515,3058.9,3058.6,6.53893938]
[1765032467222,0.49150515,3058.9,3058.6,7.02053938]
[1765032470121,0.49150515,3058.9,3058.8,0.4835]
[1765032470528,1.00950515,3059.1,3058.6,6.53893938]
[1765032470712,1.00950515,3059.1,3058.7,0.4816]
[1765032470908,0.49150515,3059.1,3059.0,0.4591]
[1765032471114,0.49150515,3059.5,3059.0,0.4591]
[1765032471336,0.49150515,3059.3,3058.6,6.53893938]
[1765032471511,0.49150515,3059.3,3058.8,0.4528]
[1765032471703,0.49150515,3059.3,3059.2,0.4591]
[1765032472336,0.49150515,3059.3,3059.2,3.72792845]
[1765032472636,0.49150515,3059.3,3059.2,0.4591]
[1765032472936,0.72610515,3059.3,3059.0,3.26901304]
[1765032473143,0.49150515,3059.1,3059.0,3.26901304]
[1765032473940,0.49150515,3059.1,3059.0,4.18091304]
[1765032475627,0.49150515,3059.5,3059.0,7.44995521]
[1765032475807,1.00950515,3059.5,3059.2,0.4591]
[1765032476238,1.00950515,3059.5,3059.2,0.9119]
[1765032476938,1.00950515,3059.5,3059.3,3.2687216]
[1765032479029,1.00950515,3059.5,3059.2,3.26881803]
[1765032479950,1.00950515,3059.5,3059.2,6.99044648]
[1765032480246,1.00950515,3059.5,3059.4,0.4591]
[1765032480615,1.00950515,3059.5,3059.2,3.26881803]
[1765032480616,1.99046253,3059.5,3059.2,3.26881803]
[1765032480842,0.72460515,3059.3,3059.2,3.26881803]
[1765032481141,0.72460515,3059.3,3058.7,0.4528]
[1765032481142,0.72460515,3059.3,3058.8,3.26921801]
[1765032481342,0.49150515,3059.1,3058.8,3.26921801]
[1765032481543,0.49150515,3059.1,3058.8,3.72201801]
[1765032481843,0.78290515,3058.9,3058.5,0.72460515]
[1765032482138,0.08,3058.6,3058.1,3.26990246]
[1765032482341,0.518,3058.5,3058.2,3.26989129]
[1765032482510,0.518,3058.5,3058.3,3.26978039]
[1765032482906,0.2346,3058.4,3057.9,6.54043624]
[1765032483640,0.08,3058.0,3057.8,3.2713046]
[1765032484045,0.49150515,3058.1,3057.9,0.001]
[1765032484743,0.2346,3058.0,3057.9,0.001]
[1765032486615,1.00950515,3058.1,3057.9,0.001]
[1765032488055,0.2346,3058.0,3057.9,0.001]
[1765032488224,0.640104,3058.0,3057.9,0.001]
[1765032488433,0.874704,3058.0,3057.9,0.001]
[1765032489934,0.405504,3058.0,3057.9,0.4737]
[1765032490247,0.923504,3058.0,3057.9,0.4737]
[1765032490442,0.923504,3058.0,3057.9,0.001]
[1765032490443,1.158104,3058.0,3057.9,0.001]
[1765032490671,1.32306492,3058.0,3057.9,0.001]
[1765032490816,1.55766492,3058.0,3057.9,0.001]
[1765032491347,1.65766492,3058.0,3057.9,0.001]
[1765032491515,4.9277761,3058.0,3057.9,0.001]
[1765032492029,5.75337021,3058.0,3057.9,0.001]
[1765032492224,5.88434576,3058.0,3057.9,0.001]
[1765032493734,5.917178,3058.0,3057.9,0.001]
[1765032494859,5.399178,3058.0,3057.9,0.001]
[1765032495156,5.917178,3058.0,3057.9,0.001]
[1765032495364,20.417178,3058.0,3057.9,0.001]
[1765032495540,19.86634576,3058.0,3057.9,0.001]
[1765032495867,20.38434576,3058.0,3057.9,0.001]
[1765032496527,0.605504,3057.3,3056.9,0.001]
[1765032496724,8.33595979,3057.3,3056.9,0.001]
[1765032496961,15.41586976,3057.3,3056.9,0.001]
[1765032497140,8.82750808,3057.3,3056.9,0.001]
[1765032497543,8.20950808,3057.3,3056.9,0.001]
[1765032497743,8.72750808,3057.3,3056.9,0.001]
[1765032498866,8.20950808,3057.3,3056.9,0.001]
[1765032499171,0.4595,3057.8,3057.2,0.4737]
[1765032499332,0.49150515,3057.4,3057.3,0.4727]
[1765032499728,0.49150515,3057.4,3057.3,0.9322]
[1765032499950,0.49150515,3057.9,3057.3,0.9322]
[1765032500155,0.49150515,3058.3,3057.8,0.4727]
[1765032500341,0.519,3058.0,3057.8,0.4727]
[1765032500535,0.519,3058.0,3057.8,0.9322]
[1765032500745,1.21709926,3058.3,3057.9,0.4727]
[1765032501055,1.21709926,3058.3,3057.6,3.27049418]
[1765032501056,0.48860616,3058.0,3057.6,3.27049418]
[1765032501256,0.49150515,3057.7,3057.5,3.27054463]
[1765032501457,0.49150515,3057.7,3057.2,0.4605]
[1765032501761,0.49150515,3057.3,3057.2,3.27196689]
[1765032502251,0.49150515,3057.5,3057.2,7.47513378]
[1765032502455,1.01050515,3057.5,3057.4,3.74345292]
[1765032502955,0.49150515,3057.9,3057.4,4.20295292]
[1765032503252,0.49150515,3057.7,3057.5,0.4595]
[1765032503655,0.49150515,3057.7,3057.6,0.4727]
[1765032504152,0.49150515,3057.7,3057.6,0.9322]
[1765032504956,0.49150515,3057.7,3057.6,4.20273898]
[1765032505154,0.49150515,3057.7,3057.2,0.001]
[1765032505330,0.52433739,3058.0,3057.3,7.0012198]
[1765032505526,0.49150515,3057.7,3057.3,7.0012198]
[1765032505728,0.49150515,3057.7,3057.4,0.4595]
[1765032505934,0.49150515,3057.7,3057.6,0.4727]
[1765032506434,0.49150515,3057.7,3057.6,0.9322]
[1765032507551,0.49150515,3057.7,3057.6,4.20273898]
[1765032508471,0.49150515,3057.7,3057.6,0.9322]
[1765032508972,0.49150515,3057.7,3057.6,0.4727]
[1765032510353,0.82610515,3057.7,3057.2,3.27189517]
[1765032510554,0.49150515,3057.8,3057.6,0.4727]
[1765032510870,0.49150515,3057.8,3057.7,0.4727]
[1765032511075,1.01050515,3057.8,3057.7,0.4727]
[1765032513476,0.49150515,3057.8,3057.7,0.4727]
[1765032513651,1.01050515,3057.8,3057.7,0.4727]
[1765032514353,1.24510515,3057.8,3057.3,3.27079454]
[1765032514561,0.49150515,3057.4,3057.3,3.27079454]
[1765032514758,0.49150515,3057.4,3057.3,3.73029454]
[1765032514979,0.49150515,3057.4,3057.3,4.20299454]
[1765032516478,0.519,3057.5,3057.3,7.47385444]
[1765032516676,0.519,3057.5,3057.4,0.4595]
[1765032517056,0.519,3057.5,3057.4,0.9322]
[1765032518480,0.519,3057.5,3057.4,4.20295292]
[1765032519179,0.519,3057.7,3057.4,7.47370584]
[1765032519350,1.01050515,3057.8,3057.7,0.4814]
[1765032519754,1.01050515,3057.8,3057.7,0.9792]
[1765032520658,0.49150515,3057.8,3057.7,0.9792]
[1765032520854,0.49150515,3058.0,3057.7,7.52006404]
[1765032521055,0.49150515,3058.0,3057.9,0.4814]
[1765032521478,0.49150515,3058.0,3057.9,0.9792]
[1765032522857,0.49150515,3058.0,3057.9,4.24941812]
[1765032524382,0.49150515,3058.0,3057.7,3.27039189]
[1765032524625,0.49150515,3057.8,3057.7,3.27039189]
[1765032524790,0.49150515,3057.8,3057.4,6.54150584]
[1765032525090,0.49150515,3057.8,3057.7,0.9792]
[1765032527484,0.49150515,3057.8,3057.7,4.24963202]
[1765032533267,0.518,3058.0,3057.7,7.52006404]
[1765032533467,0.518,3058.0,3057.9,0.4758]
[1765032533868,0.518,3058.0,3057.9,0.9601]
[1765032534993,0.49150515,3058.1,3057.9,0.9601]
[1765032535193,1.00950515,3058.1,3057.9,0.9601]
[1765032535402,1.00950515,3058.1,3057.9,4.23029819]
[1765032536976,1.00950515,3058.1,3057.9,3.74599819]
[1765032538680,1.00950515,3058.1,3058.0,0.9601]
[1765032540480,1.00950515,3058.1,3058.0,0.4758]
[1765032542637,1.24410515,3058.1,3057.8,3.75458062]
[1765032542782,1.24410515,3058.1,3057.4,6.54146977]
[1765032542783,0.57150515,3057.9,3057.4,6.54146977]
[1765032542994,0.49150515,3057.7,3057.4,6.54146977]
[1765032543330,0.49150515,3057.7,3057.5,0.4843]
[1765032544004,0.49150515,3057.7,3057.6,3.27053898]
[1765032544908,1.24410515,3057.7,3057.6,3.27053898]
[1765032545213,1.24410515,3057.7,3057.5,3.27061057]
[1765032545916,1.00950515,3057.7,3057.6,3.74633898]
[1765032546100,1.00950515,3057.7,3057.6,4.23063898]
[1765032546415,1.00950515,3057.7,3057.6,3.74633898]
[1765032546935,0.518,3057.7,3057.6,4.23063898]
[1765032548714,0.49150515,3057.9,3057.6,4.23063898]
[1765032548910,0.518,3057.8,3057.7,0.4544]
[1765032549517,0.49150515,3057.9,3057.7,0.4544]
[1765032549815,1.00950515,3057.9,3057.7,0.4544]
[1765032550406,1.00950515,3057.9,3057.6,3.27053898]
[1765032550607,0.49150515,3057.7,3057.6,3.27053898]
[1765032551290,0.49150515,3057.7,3057.6,0.486]
[1765032552319,0.72610515,3057.7,3057.2,6.99729316]
[1765032552525,0.72610515,3057.7,3057.3,0.4544]
[1765032553216,0.72610515,3057.7,3057.2,6.99729316]
[1765032553418,0.49150515,3057.5,3057.2,6.99729316]
[1765032553719,0.57150515,3057.3,3057.2,0.001]
[1765032553889,0.49150515,3057.5,3057.2,3.27196689]
[1765032554091,6.75118468,3057.9,3057.4,0.486]
[1765032554092,0.518,3057.6,3057.4,0.486]
[1765032554314,0.49150515,3057.9,3057.3,0.4544]
[1765032554519,0.518,3057.8,3057.3,6.71407953]
[1765032554718,0.518,3057.8,3057.3,0.4544]
[1765032554919,0.518,3057.8,3057.7,0.486]
[1765032555293,0.518,3057.8,3057.7,0.9404]
[1765032555689,0.7526,3057.8,3057.6,3.27045251]
[1765032555897,0.08,3057.7,3057.5,3.27061816]
[1765032556213,0.518,3057.7,3057.5,3.27061816]
[1765032556813,0.518,3057.7,3057.6,3.27053898]
[1765032557123,0.518,3057.7,3057.6,3.75653898]
[1765032557900,0.518,3057.7,3057.6,4.21093898]
[1765032558601,0.49150515,3057.9,3057.6,4.21093898]
[1765032558798,0.49150515,3057.9,3057.6,3.72493898]
[1765032558799,0.49150515,3057.7,3057.6,3.72493898]
[1765032559116,0.49150515,3057.7,3057.6,3.27053898]
[1765032559306,0.49150515,3057.7,3057.6,3.75653898]
[1765032559506,0.49150515,3057.7,3057.6,4.21093898]
[1765032561130,0.49150515,3057.7,3057.6,3.27053898]
[1765032561295,0.49150515,3057.7,3057.6,3.75653898]
[1765032562101,0.49150515,3057.7,3057.5,3.27064206]
[1765032562102,0.72610515,3057.7,3057.5,3.27064206]
[1765032563218,0.08,3057.6,3057.4,3.27069082]
[1765032563530,0.49150515,3057.5,3057.2,3.27195295]
[1765032563729,0.49150515,3057.5,3057.2,0.001]
[1765032563730,0.49150515,3057.3,3057.2,0.001]
[1765032564516,0.72610515,3057.3,3057.2,0.001]
[1765032564718,1.49592253,3057.3,3057.2,0.001]
[1765032565627,1.73052253,3057.3,3057.2,0.001]
[1765032565923,1.49592253,3057.3,3057.2,0.001]
[1765032566631,1.90142653,3057.3,3057.2,0.001]
[1765032567912,2.13602653,3057.3,3057.2,0.001]
[1765032569905,5.40688643,3057.3,3057.2,0.001]
[1765032570100,2.13602653,3057.3,3057.2,0.001]
[1765032570806,11.76656596,3057.3,3057.2,0.001]
[1765032571017,12.49216007,3057.3,3057.2,0.001]
[1765032571941,18.55472355,3057.3,3057.2,0.001]
[1765032574137,24.81440308,3057.3,3057.2,0.001]
[1765032574438,39.31440308,3057.3,3057.2,0.001]
[1765032577843,33.05472355,3057.3,3057.2,0.001]
[1765032578041,8.28408012,3057.3,3057.2,0.001]
[1765032578229,6.97206863,3057.3,3057.2,0.487]
[1765032578611,11.20312264,3057.3,3057.2,0.001]
[1765032578819,18.30290617,3057.3,3057.2,0.001]
[1765032579019,20.50941558,3057.3,3057.2,0.001]
[1765032579341,20.27481558,3057.3,3057.2,0.001]
[1765032579538,20.17481558,3057.3,3057.2,0.001]
[1765032580443,14.14973605,3057.3,3057.2,0.001]
[1765032581020,13.91513605,3057.3,3057.2,0.001]
[1765032583235,20.41320302,3057.3,3057.2,0.001]
[1765032585546,34.91320302,3057.3,3057.2,0.001]
[1765032585917,35.01320302,3057.3,3057.2,0.001]
[1765032586342,34.49520302,3057.3,3057.2,0.001]
[1765032586543,35.01320302,3057.3,3057.2,0.001]
[1765032592864,34.77860302,3057.3,3057.2,0.001]
[1765032595960,34.26060302,3057.3,3057.2,0.001]
[1765032596170,34.54400302,3057.3,3057.2,0.001]